fUSD/lending_fUSD_20240812
["ID","MTS","AMOUNT","RATE_DAILY","PERIOD"]
[334666097,1723437032108,-411.97488387,0.00010196,2]
[334666099,1723437032117,-1223.89523949,0.00010196,2]
[334666101,1723437032127,-760.45102022,0.00010196,2]
[334666103,1723437032137,-485.6993547,0.00010196,2]
[334666105,1723437032147,-693.27901704,0.00010196,2]
[334666107,1723437032156,-193.7771415,0.00010378,2]
[334666109,1723437032167,-162.7428585,0.00010378,2]
[334666111,1723437032177,-356.52,0.00010378,2]
[334666113,1723437032186,-356.52,0.00010378,2]
[334666115,1723437032195,-356.52,0.00010378,2]
[334666117,1723437032205,-356.52,0.00010378,2]
[334666119,1723437032215,-247.03,0.00010378,2]
[334666121,1723437032224,-425.77,0.00010378,2]
[334666123,1723437032234,-356.52,0.00010378,2]
[334666125,1723437032243,-712.98,0.00010378,2]
[334666127,1723437032252,-356.52,0.00010378,2]
[334666129,1723437032261,-1364.54,0.00010456,2]
[334666131,1723437032270,-426.37,0.00010478,2]
[334666133,1723437032279,-150.0,0.00010478,2]
[334666135,1723437032288,-530.97,0.00010478,2]
[334666137,1723437032298,-530.97,0.00010478,2]
[334666139,1723437032312,-426.37,0.00010478,2]
[334666141,1723437032321,-150.0,0.00010478,2]
[334666142,1723437032333,-530.97,0.00010478,2]
[334666144,1723437032342,-150.0,0.00010478,2]
[334666146,1723437032351,-426.37,0.00010478,2]
[334666149,1723437032360,-530.97,0.00010478,2]
[334666151,1723437032369,-426.37,0.00010478,2]
[334666152,1723437032379,-150.0,0.00010478,2]
[334666154,1723437032388,-530.97,0.00010478,2]
[334666156,1723437032397,-426.37,0.00010478,2]
[334666158,1723437032406,-150.0,0.00010478,2]
[334666160,1723437032415,-150.0,0.0001078,2]
[334666162,1723437032424,-197.0,0.00010787,2]
[334666164,1723437032433,-640.0,0.00010802,2]
[334666166,1723437032442,-860.27502339,0.00010807,2]
[334666181,1723437032451,-150.0,0.00010872,2]
[334666182,1723437032623,-150.0,0.0001088,2]
[334666183,1723437032632,-171.85746899,0.000109,2]
[334666184,1723437032641,-171.47722021,0.000109,2]
[334666185,1723437032650,-318.57631871,0.000109,2]
[334666186,1723437032660,-159.02179099,0.000109,2]
[334666187,1723437032669,-197.68509496,0.000109,2]
[334666188,1723437032678,-420.0,0.00010902,2]
[334666189,1723437032689,-150.0,0.00010905,2]
[334666190,1723437032699,-193.16212738,0.00010925,2]
[334666191,1723437032708,-150.0,0.00010934,2]
[334666192,1723437032717,-150.0,0.00010952,2]
[334666193,1723437032726,-422.35,0.00010959,2]
[334666194,1723437032735,-250.0,0.00010959,2]
[334666195,1723437032744,-150.0,0.0001097,2]
[334666196,1723437032753,-1672.0,0.0001097,2]
[334666197,1723437032762,-21751.0,0.0001097,2]
[334666198,1723437032771,-1204.0,0.0001097,2]
[334666199,1723437032779,-5840.0,0.0001097,2]
[334666200,1723437032788,-289.0,0.0001097,2]
[334666201,1723437032797,-5132.0,0.0001097,2]
[334666202,1723437032806,-1177.7067439,0.00010997,2]
[334666203,1723437032816,-7701.2760402,0.00010997,2]
[334666204,1723437032825,-25054.6391214,0.00010997,2]
[334666205,1723437032839,-326.68417522,0.00010997,2]
[334666206,1723437032848,-150.01,0.00010999,2]
[334666207,1723437032858,-255.0,0.00010999,2]
[334666208,1723437032867,-150.0,0.00010999,2]
[334666209,1723437032876,-150.0,0.00010999,7]
[334666210,1723437032885,-150.0,0.00010999,7]
[334666211,1723437032894,-150.0,0.00010999,7]
[334666212,1723437032903,-150.0,0.00010999,7]
[334666213,1723437032912,-150.0,0.00010999,7]
[334666214,1723437032922,-150.0,0.00010999,7]
[334666215,1723437032931,-150.0,0.00010999,7]
[334666216,1723437032940,-150.0,0.00010999,7]
[334666217,1723437032949,-150.0,0.00010999,7]
[334666218,1723437032959,-161.45810756,0.00010999,7]
[334666219,1723437032968,-19625.50114405,0.00011,2]
[334666220,1723437032980,-3476.12861861,0.00011,2]
[334666227,1723437037781,-282.030005,0.00011,2]
[334666228,1723437037898,-519.07829482,0.00011,2]
[334666229,1723437038124,-162027.06326291,0.00011,2]
[334666230,1723437038134,-357645.48269008,0.00011,2]
[334666326,1723437040029,-1076.0,0.0001097,2]
[334666327,1723437040038,-405295.59941397,0.00011,2]
[334666328,1723437041409,-1463.274,0.00011,2]
[334666333,1723437042732,-150.01,0.00010999,2]
[334666334,1723437042741,-945.77215054,0.00011,2]
[334666338,1723437043380,-236080.0219722,0.00011,2]
[334666339,1723437043391,-5859.8,0.00011,2]
[334666350,1723437046106,-2390.22227028,0.00011,2]
[334666351,1723437050179,-5853.5,0.00011,2]
[334666352,1723437050407,197.0,8.491e-05,2]
[334666353,1723437127538,364.05825295,8.491e-05,2]
[334666354,1723437139892,227.76686171,8.491e-05,2]
[334666355,1723437140560,155.0,8.491e-05,2]
[334666356,1723437140930,611.45919112,8.491e-05,2]
[334666357,1723437148586,693.27901704,8.491e-05,2]
[334666358,1723437151637,1812.6454,9.572e-05,2]
[334666359,1723437157560,485.6993547,8.491e-05,2]
[334666360,1723437159705,693.27901704,8.491e-05,2]
[334666361,1723437172467,197.40870829,8.491e-05,2]
[334666362,1723437173518,760.45102022,8.491e-05,2]
[334666363,1723437174643,1284.55129819,8.491e-05,2]
[334666364,1723437182571,1223.89523949,9.572e-05,2]
[334666365,1723437186945,7573.35383779,9.572e-05,2]
[334666366,1723437188449,411.97488387,9.572e-05,2]
[334666367,1723437189471,760.45102022,9.572e-05,2]
[334666368,1723437194644,183716.80201461,9.572e-05,2]
[334666369,1723437218444,411.97488387,9.572e-05,2]
[334666370,1723437218542,364.05825295,9.572e-05,2]
[334666371,1723437219323,1000.0,0.00027,120]
[334666372,1723437219905,227.76686171,9.572e-05,2]
[334666373,1723437222451,2124.09349152,9.572e-05,2]
[334666374,1723437231537,1239.56,8.219e-05,2]
[334666375,1723437232530,1336.65591324,9.572e-05,2]
[334666376,1723437240559,485.6993547,9.572e-05,2]
[334666377,1723437244060,187.96757953,9.572e-05,2]
[334666378,1723437257569,20388.48019643,9.572e-05,2]
[334666379,1723437258648,1285.2411308,9.572e-05,2]
[334666380,1723437266085,693.27901704,9.572e-05,2]
[334666381,1723437293476,760.45102022,9.572e-05,2]
[334666382,1723437295546,1223.89523949,9.572e-05,2]
[334666383,1723437301906,227.76686171,9.572e-05,2]
[334666384,1723437303499,364.05825295,9.572e-05,2]
[334666385,1723437321579,485.6993547,9.572e-05,2]
[334666386,1723437347650,1284.38583427,9.572e-05,2]
[334666387,1723437355456,411.97488387,9.572e-05,2]
[334666388,1723437358564,973.59028936,9.572e-05,2]
[334666389,1723437366551,317.20965421,9.572e-05,2]
[334666390,1723437371698,159.08001152,9.572e-05,2]
[334666391,1723437373562,973.59028936,9.572e-05,2]
[334666392,1723437376553,291.63481853,9.572e-05,2]
[334666393,1723437382904,227.76686171,9.572e-05,2]
[334666394,1723437382934,872.38896969,9.572e-05,2]
[334666395,1723437383518,364.05825295,9.572e-05,2]
[334666396,1723437385495,411.97488387,9.572e-05,2]
[334666397,1723437393061,155.0,9.572e-05,2]
[334666398,1723437398605,425.9487393,9.572e-05,2]
[334666399,1723437400403,155.0,9.572e-05,2]
[334666400,1723437400993,760.45102022,9.572e-05,2]
[334666401,1723437404047,955.3103647,9.572e-05,2]
[334666402,1723437415984,760.45102022,9.572e-05,2]
[334666403,1723437434586,1112.36271888,9.572e-05,2]
[334666404,1723437436567,485.6993547,9.572e-05,2]
[334666405,1723437465032,291.63481853,9.572e-05,2]
[334666406,1723437472660,159.08001152,9.572e-05,2]
[334666407,1723437478578,973.59028936,9.572e-05,2]
[334666408,1723437478888,872.38896969,9.572e-05,2]
[334666409,1723437479913,227.76686171,9.572e-05,2]
[334666410,1723437492369,155.0,9.572e-05,2]
[334666411,1723437495029,291.63481853,9.572e-05,2]
[334666412,1723437496865,425.9487393,9.572e-05,2]
[334666413,1723437498516,284.85096724,9.572e-05,2]
[334666414,1723437498963,411.97488387,9.572e-05,2]
[334666415,1723437499897,155.0,9.572e-05,2]
[334666416,1723437508884,872.38896969,9.572e-05,2]
[334666417,1723437514893,155.0,9.572e-05,2]
[334666418,1723437524569,485.6993547,9.572e-05,2]
[334666419,1723437538983,760.45102022,9.572e-05,2]
[334666420,1723437554566,159.08001152,9.572e-05,2]
[334666421,1723437567912,227.76686171,9.572e-05,2]
[334666422,1723437570378,194.72457511,9.572e-05,2]
[334666423,1723437593107,973.59028936,9.572e-05,2]
[334666424,1723437594953,411.97488387,9.572e-05,2]
[334666425,1723437599076,206.91375451,9.572e-05,2]
[334666426,1723437604579,485.6993547,9.572e-05,2]
[334666427,1723437609576,425.9487393,9.572e-05,2]
[334666428,1723437621997,630.04752249,9.572e-05,2]
[334666429,1723437623897,872.38896969,9.572e-05,2]
[334666430,1723437636896,209.77778999,9.572e-05,2]
[334666431,1723437639581,425.9487393,9.572e-05,2]
[334666432,1723437639894,872.38896969,9.572e-05,2]
[334666433,1723437655917,227.76686171,9.572e-05,2]
[334666434,1723437666168,159.08001152,9.572e-05,2]
[334666435,1723437688971,173.60904936,9.572e-05,2]
[334666436,1723437689362,1177.58,8.219e-05,2]
[334666437,1723437711076,869.64654528,9.572e-05,2]
[334666438,1723437740434,227.76686171,8.219e-05,2]
[334666439,1723437754908,640.10632878,8.219e-05,2]
[334666440,1723437766316,159.08001152,8.219e-05,2]
[334666441,1723437768592,425.9487393,8.219e-05,2]
[334666442,1723437771745,607.04,0.00025,60]
[334666443,1723437827449,227.76686171,8.219e-05,2]
[334666444,1723437871129,151.18,8.219e-05,2]
[334666445,1723437891175,159.08001152,8.219e-05,2]
[334666446,1723437913589,425.9487393,8.219e-05,2]
[334666448,1723437922449,227.76686171,8.219e-05,2]
[334666449,1723437988178,159.08001152,8.219e-05,2]
[334666450,1723438002352,159.08001152,8.219e-05,2]
[334666451,1723438024604,300.89976288,8.219e-05,2]
[334666452,1723438027497,227.76686171,8.219e-05,2]
[334666472,1723438057505,227.76686171,8.219e-05,2]
[334666473,1723438152717,1118.7,8.219e-05,2]
[334666474,1723438178469,227.76686171,8.219e-05,2]
[334666478,1723438232017,-192.3,9.842e-05,2]
[334666479,1723438232026,-1000.0,9.853e-05,2]
[334666480,1723438232035,-250.0,9.865e-05,2]
[334666481,1723438232045,-200.0,9.903e-05,2]
[334666482,1723438232054,-150.0,9.934e-05,2]
[334666483,1723438232064,-300.0,9.934e-05,2]
[334666484,1723438232073,-404.68,9.935e-05,2]
[334666485,1723438232082,-159.62,9.935e-05,2]
[334666486,1723438232091,-23900.0,9.935e-05,2]
[334666487,1723438232101,-280.87,9.958e-05,2]
[334666488,1723438232110,-522.85661593,9.962e-05,2]
[334666489,1723438232119,-155.0,9.962e-05,2]
[334666490,1723438232129,-240.4,0.00010007,2]
[334666491,1723438232139,-150.0,0.00010137,2]
[334666492,1723438232149,-857.38,0.00010178,2]
[334666493,1723438232159,-356.52,0.00010278,2]
[334666494,1723438232169,-356.52,0.00010278,2]
[334666495,1723438232178,-356.52,0.00010278,2]
[334666496,1723438232189,-835.34,0.00010441,2]
[334666497,1723438232199,-835.34,0.00010441,2]
[334666498,1723438232209,-835.34,0.00010441,2]
[334666499,1723438232220,-835.34,0.00010441,2]
[334666500,1723438232230,-835.34,0.00010441,2]
[334666501,1723438232239,-1668.89,0.00010441,2]
[334666502,1723438232249,-1118.7,0.00010468,2]
[334666503,1723438232258,-356.52,0.00010478,2]
[334666504,1723438232267,-173.85,0.0001049,2]
[334666505,1723438232276,-293.27,0.0001049,2]
[334666506,1723438232285,-150.99,0.0001049,2]
[334666507,1723438232294,-426.37,0.00010578,2]
[334666508,1723438232303,-426.37,0.00010578,2]
[334666509,1723438232312,-426.37,0.00010578,2]
[334666511,1723438232321,-426.37,0.00010578,2]
[334666512,1723438232331,-426.37,0.00010578,2]
[334666514,1723438232340,-356.52,0.00010678,2]
[334666516,1723438232349,-150.0,0.00010764,2]
[334666518,1723438232358,-150.0,0.00010769,2]
[334666519,1723438232368,-150.0,0.00010784,2]
[334666520,1723438232377,-150.0,0.00010805,2]
[334666521,1723438232386,-150.0,0.00010853,2]
[334666522,1723438232395,-150.0,0.00010886,2]
[334666523,1723438232404,-2012.4659,0.000109,2]
[334666524,1723438232413,-339.54542613,0.000109,2]
[334666525,1723438232422,-20856.8852,0.000109,2]
[334666526,1723438232432,-188.30994969,0.000109,2]
[334666527,1723438232441,-3363.4054,0.000109,2]
[334666528,1723438232451,-309.22847159,0.000109,2]
[334666529,1723438232460,-31398.3956,0.000109,2]
[334666530,1723438232470,-150.0,0.00010916,2]
[334666531,1723438232479,-300.0,0.00010927,2]
[334666532,1723438232489,-3000.0,0.0001094,2]
[334666533,1723438232499,-714.0,0.0001095,5]
[334666534,1723438232508,-150.0,0.00010957,2]
[334666535,1723438232518,-250.0,0.00010959,2]
[334666536,1723438232528,-823.69,0.00010959,2]
[334666537,1723438232537,-150.0,0.00010966,2]
[334666538,1723438232547,-195.31336678,0.00010973,2]
[334666539,1723438232556,-700.0,0.0001098,2]
[334666540,1723438232565,-700.0,0.00010985,5]
[334666541,1723438232574,-2381.1359455,0.00010997,2]
[334666542,1723438232584,-687.4235612,0.00010997,2]
[334666543,1723438232593,-344.96712367,0.00010997,2]
[334666544,1723438232602,-163.34208761,0.00010997,2]
[334666545,1723438232611,-150.01,0.00010999,2]
[334666546,1723438232620,-95183.61379796,0.00011,2]
[334666547,1723438232630,-51617.34236327,0.00011,2]
[334666548,1723438232642,-11693.05854522,0.00011,2]
[334666549,1723438232678,-5151.0318562,0.00011,2]
[334666550,1723438232716,-200.83072216,0.00010973,2]
[334666551,1723438232726,-85.35120056,0.00011,2]
[334666552,1723438232739,-734.6075021,0.00011,2]
[334666553,1723438232756,-396.24892489,0.00011,2]
[334666558,1723438237907,-227.76686171,9.962e-05,2]
[334666559,1723438237917,-1049.54113331,9.962e-05,2]
[334666560,1723438237927,-3292.32191146,0.0001043,2]
[334666561,1723438237936,-15301.93156953,0.00011,2]
[334666562,1723438238179,-1066.12322938,0.00011,2]
[334666563,1723438238191,-663.28704348,0.00011,2]
[334666590,1723438242937,-663.25349739,0.0001097,2]
[334666591,1723438243050,-412.74650261,0.0001097,2]
[334666592,1723438243061,-235667.27546959,0.00011,2]
[334666600,1723438243506,-1175.41140274,0.00011,2]
[334666604,1723438246268,-2064.39225517,0.0001043,2]
[334666611,1723438508082,150.0,0.00024736,60]
[334666612,1723438508354,150.0,0.00024989,60]
[334666613,1723438613448,1016.65,8.219e-05,2]
[334666614,1723438682499,227.76686171,8.219e-05,2]
[334666615,1723438780664,227.76686171,8.219e-05,2]
[334666616,1723438829509,150.0,0.00024506,60]
[334666617,1723438829806,150.0,0.00024817,60]
[334666618,1723438883009,227.76686171,8.219e-05,2]
[334666619,1723438959038,227.76686171,8.219e-05,2]
[334666621,1723439050007,227.76686171,8.219e-05,2]
[334666622,1723439055385,1237.049,8.219e-05,2]
[334666623,1723439056996,961.55291744,8.219e-05,2]
[334666624,1723439062710,1732.12740772,8.219e-05,2]
[334666625,1723439063296,2882.67178771,8.219e-05,2]
[334666626,1723439064614,1034.50268757,8.219e-05,2]
[334666627,1723439064755,31805.9577798,8.219e-05,2]
[334666628,1723439098976,965.81,8.219e-05,2]
[334666629,1723439152021,227.76686171,8.219e-05,2]
[334666632,1723439182023,227.76686171,8.219e-05,2]
[334666665,1723439299023,227.76686171,8.219e-05,2]
[334666677,1723439376105,7577.72096623,8.219e-05,2]
[334666685,1723439393288,23900.0,9.592e-05,2]
[334666686,1723439394499,5924.2168793,9.561e-05,2]
[334666687,1723439404036,227.76686171,8.219e-05,2]
[334666689,1723439406405,159.62,9.59e-05,2]
[334666690,1723439432070,-250.0,9.661e-05,2]
[334666691,1723439432080,-110.246502,9.707e-05,2]
[334666692,1723439432128,-200.983498,9.707e-05,2]
[334666693,1723439432138,-800.0,9.737e-05,2]
[334666694,1723439432147,-303.3037382,9.853e-05,2]
[334666695,1723439432156,-153.91125107,9.862e-05,2]
[334666696,1723439432168,-164.39144893,9.862e-05,2]
[334666697,1723439432177,-197.44,9.918e-05,2]
[334666698,1723439432186,-300.0,9.961e-05,2]
[334666699,1723439432196,-3976.99349446,9.962e-05,2]
[334666700,1723439432244,-3144.07254094,9.962e-05,2]
[334666701,1723439432255,-2887.5944,9.962e-05,2]
[334666702,1723439438124,-302.30850828,9.962e-05,2]
[334666703,1723439438287,-2.74842119,9.962e-05,2]
[334666704,1723439438575,-543.14,9.966e-05,2]
[334666705,1723439438585,-426.37,9.97e-05,2]
[334666706,1723439438598,-385.51815999,0.0001,2]
[334666707,1723439438609,-164.48184001,0.0001,2]
[334666708,1723439438619,-173.85,0.00010016,2]
[334666709,1723439438791,-200.0,0.00010107,2]
[334666710,1723439438800,-426.37,0.00010178,2]
[334666711,1723439438810,-421.01,0.00010241,2]
[334666712,1723439438819,-421.01,0.00010241,2]
[334666713,1723439438829,-421.01,0.00010241,2]
[334666714,1723439438838,-351.74,0.00010241,2]
[334666715,1723439438847,-421.01,0.00010241,2]
[334666716,1723439438856,-426.37,0.00010278,2]
[334666717,1723439438865,-426.37,0.00010278,2]
[334666718,1723439438875,-426.37,0.00010278,2]
[334666719,1723439438885,-426.37,0.00010278,2]
[334666720,1723439438894,-150.0,0.00010378,2]
[334666721,1723439438904,-426.37,0.00010378,2]
[334666722,1723439438913,-150.0,0.00010378,2]
[334666723,1723439438923,-426.37,0.00010378,2]
[334666724,1723439438932,-356.52,0.00010378,2]
[334666725,1723439438942,-150.0,0.00010378,2]
[334666726,1723439438951,-150.0,0.00010378,2]
[334666727,1723439438960,-356.52,0.00010378,2]
[334666728,1723439438969,-150.0,0.00010378,2]
[334666729,1723439438978,-356.52,0.00010378,2]
[334666731,1723439438987,-356.52,0.00010378,2]
[334666733,1723439438996,-300.0,0.00010378,2]
[334666735,1723439439006,-41.93815759,0.00010431,2]
[334666739,1723439440060,-1036.84830626,0.00010431,2]
[334666746,1723439440119,-2327.8579357,0.00010431,2]
[334666748,1723439440133,-340.78144659,0.00010431,2]
[334666750,1723439440144,-561.97850452,0.00010431,2]
[334666753,1723439440156,-617.50254672,0.00010431,2]
[334666764,1723439440287,-1166.36673653,0.00010431,2]
[334666771,1723439440346,-1596.88006637,0.00010431,2]
[334666779,1723439440407,-2309.84629972,0.00010431,2]
[334666781,1723439440416,-61.62866871,0.00010431,2]
[334666783,1723439440427,-587.021696,0.00010431,2]
[334666785,1723439440438,-788.23086041,0.00010431,2]
[334666791,1723439443070,-1846.70558878,0.00010431,2]
[334666792,1723439443082,-965.81,0.00010463,2]
[334666793,1723439443093,-301.03,0.00010513,2]
[334666794,1723439443104,-397.75,0.00010513,2]
[334666795,1723439443115,-150.0,0.00010513,2]
[334666796,1723439443126,-150.0,0.00010513,2]
[334666797,1723439443136,-150.0,0.00010513,2]
[334666798,1723439443145,-150.0,0.00010513,2]
[334666799,1723439443154,-535.6,0.00010513,2]
[334666800,1723439443165,-530.92,0.00010513,2]
[334666801,1723439443175,-150.0,0.00010513,2]
[334666802,1723439443185,-150.0,0.00010513,2]
[334666803,1723439443195,-150.0,0.00010513,2]
[334666804,1723439443207,-530.92,0.00010513,2]
[334666805,1723439443217,-150.0,0.00010513,2]
[334666806,1723439443228,-150.0,0.00010513,2]
[334666807,1723439443238,-150.0,0.00010513,2]
[334666808,1723439443247,-530.97,0.00010513,2]
[334666809,1723439443257,-150.0,0.00010513,2]
[334666810,1723439443267,-150.0,0.00010578,2]
[334666811,1723439443277,-150.0,0.00010578,2]
[334666812,1723439443287,-150.0,0.00010578,2]
[334666813,1723439443298,-150.0,0.00010578,2]
[334666814,1723439443307,-150.0,0.00010578,2]
[334666815,1723439443318,-7.66199718,0.00010578,2]
[334666816,1723439443331,-191.51800282,0.00010578,2]
[334666817,1723439443340,-150.0,0.0001067,2]
[334666818,1723439443350,-3109.7842,0.000108,2]
[334666819,1723439443360,-3881.8354,0.000108,2]
[334666820,1723439443372,-4064.0211,0.000108,2]
[334666821,1723439443381,-150.0,0.00010835,2]
[334666822,1723439443391,-1412.9139165,0.0001089,2]
[334666823,1723439443400,-2178.06249,0.0001089,2]
[334666824,1723439443410,-500.0,0.00010897,2]
[334666825,1723439443420,-1000.0,0.00010897,2]
[334666826,1723439443431,-310.55183727,0.00010897,2]
[334666827,1723439443442,-1059.21553416,0.000109,2]
[334666828,1723439443455,-2269.52306584,0.000109,2]
[334666829,1723439443465,-1192.452,0.000109,2]
[334666830,1723439443474,-3592.65709954,0.000109,2]
[334666831,1723439443538,-23521.76724492,0.000109,2]
[334666832,1723439443555,-2581.2614539,0.000109,2]
[334666833,1723439443566,-5099.99999998,0.000109,2]
[334666834,1723439443579,-107605.26300166,0.000109,2]
[334666835,1723439443591,-1000.0,0.000109,2]
[334666836,1723439443601,-1007.0,0.000109,2]
[334666837,1723439443611,-1000.0,0.000109,2]
[334666838,1723439443621,-1000.0,0.000109,2]
[334666839,1723439443630,-1000.0,0.000109,2]
[334666840,1723439443641,-1000.0,0.000109,2]
[334666841,1723439443651,-1000.0,0.000109,2]
[334666842,1723439443660,-7500.0,0.000109,2]
[334666843,1723439443671,-800.0,0.00010954,2]
[334666844,1723439443681,-420.0,0.00010957,2]
[334666845,1723439443691,-27921.12670354,0.00010996,2]
[334666846,1723439443701,-3368.0843702,0.00010997,2]
[334666847,1723439443710,-21254.7405283,0.00010997,2]
[334666848,1723439443720,-163.34208762,0.00010997,2]
[334666849,1723439443730,-150.01,0.00010999,2]
[334666850,1723439443740,-59477.70877827,0.00011,2]
[334666851,1723439443751,-650.96828781,0.00011,2]
[334666852,1723439443763,-709.17,0.00011,2]
[334666853,1723439443775,-6552.01461704,0.00011,2]
[334666854,1723439443784,-15611.1716051,0.00011,2]
[334666856,1723439444453,-277.95,0.00011,2]
[334666857,1723439444465,-535.53560413,0.00011,2]
[334666858,1723439444481,-356.49,0.00010513,2]
[334666859,1723439444490,-2574.60514974,0.00011,2]
[334666866,1723439446196,-376.58731798,0.00010241,2]
[334666868,1723439446207,-44.42268202,0.00010241,2]
[334666870,1723439446216,-150.0,0.00010513,2]
[334666872,1723439446226,-262.35016557,0.00011,2]
[334666876,1723439446280,-2535.49260384,0.00011,2]
[334666878,1723439446366,-2447.91218181,0.00011,2]
[334666879,1723439446428,-3147.36416692,0.00011,2]
[334666880,1723439447573,-285.45492895,0.00011,2]
[334666881,1723439447586,-16344.51668327,0.00011,2]
[334666885,1723439585019,879.13,8.346e-05,2]
[334666888,1723439652275,9247.29378315,8.346e-05,2]
[334666889,1723439652303,11145.36879738,8.346e-05,2]
[334666890,1723439654144,227.76686171,8.346e-05,2]
[334666891,1723439658342,3070.25593273,8.346e-05,2]
[334666892,1723439659800,150.0,8.346e-05,2]
[334666893,1723439659822,150.0,8.346e-05,2]
[334666894,1723439659843,150.0,8.346e-05,2]
[334666895,1723439659863,150.0,8.346e-05,2]
[334666896,1723439659884,150.0,8.346e-05,2]
[334666897,1723439659906,150.0,8.346e-05,2]
[334666898,1723439659929,182816.80201461,8.346e-05,2]
[334666899,1723439684047,150.0,8.346e-05,2]
[334666900,1723439684069,77.76686171,8.346e-05,2]
[334666901,1723439767057,150.0,8.346e-05,2]
[334666902,1723439767078,77.76686171,8.346e-05,2]
[334666903,1723439778626,168.56420464,8.346e-05,2]
[334666904,1723439808626,150.0,8.346e-05,2]
[334666905,1723439808647,18.56420464,8.346e-05,2]
[334666909,1723440076322,150.0,8.219e-05,2]
[334666910,1723440076345,150.0,8.219e-05,2]
[334666911,1723440076366,150.0,8.219e-05,2]
[334666912,1723440076388,150.0,8.219e-05,2]
[334666913,1723440076411,150.0,8.219e-05,2]
[334666914,1723440076437,85.17,8.219e-05,2]
[334666918,1723440152079,150.0,9.652e-05,2]
[334666919,1723440152119,-150.0,9.652e-05,2]
[334666920,1723440152256,-150.0,9.652e-05,2]
[334666921,1723440152299,-150.0,9.652e-05,2]
[334666922,1723440152368,-150.0,9.652e-05,2]
[334666923,1723440152426,-150.0,9.652e-05,2]
[334666924,1723440152493,-111.52,9.652e-05,2]
[334666925,1723440161072,150.0,8.219e-05,2]
[334666926,1723440161093,50.48921829,8.219e-05,2]
[334666927,1723440302235,150.0,9.613e-05,2]
[334666928,1723440336393,150.0,9.5e-05,2]
[334666929,1723440336414,150.0,9.5e-05,2]
[334666930,1723440336434,150.0,9.5e-05,2]
[334666931,1723440336456,150.0,9.5e-05,2]
[334666932,1723440336475,150.0,9.5e-05,2]
[334666933,1723440336496,150.0,9.5e-05,2]
[334666934,1723440336516,150.0,9.5e-05,2]
[334666935,1723440336537,150.0,9.5e-05,2]
[334666936,1723440336557,150.0,9.5e-05,2]
[334666937,1723440336577,150.0,9.5e-05,2]
[334666938,1723440336599,150.0,9.5e-05,2]
[334666939,1723440336619,150.0,9.5e-05,2]
[334666940,1723440336639,150.0,9.5e-05,2]
[334666941,1723440336658,150.0,9.5e-05,2]
[334666942,1723440336679,150.0,9.5e-05,2]
[334666943,1723440336699,150.0,9.5e-05,2]
[334666944,1723440336719,150.0,9.5e-05,2]
[334666945,1723440336739,150.0,9.5e-05,2]
[334666946,1723440336759,150.0,9.5e-05,2]
[334666947,1723440336779,150.0,9.5e-05,2]
[334666948,1723440336799,150.0,9.5e-05,2]
[334666949,1723440336819,150.0,9.5e-05,2]
[334666950,1723440336843,20539.85,9.5e-05,2]
[334666953,1723440355682,150.0,6.94e-05,2]
[334666954,1723440355705,150.0,6.94e-05,2]
[334666955,1723440355728,22388.02638944,6.94e-05,2]
[334666957,1723440397089,150.0,9.5e-05,2]
[334666958,1723440397113,77.76686171,9.5e-05,2]
[334666959,1723440408316,172.56703197,9.5e-05,2]
[334666960,1723440420732,453.88106061,9.5e-05,2]
[334666961,1723440421610,262.6666201,9.5e-05,2]
[334666962,1723440424269,150.0,9.5e-05,2]
[334666963,1723440424290,53.51261286,9.5e-05,2]
[334666965,1723440435765,150.0,9.5e-05,2]